[Event "Kragero Resort International 2022"]
[Site "Kragero"]
[Date "2022.02.24"]
[Round "4.19"]
[White "Blokhin, Sofia"]
[Black "Sjoberg, Isak"]
[Result "1/2-1/2"]
[ECO "C55"]
[WhiteElo "2059"]
[BlackElo "2322"]
[Annotator "NA RC"]
[PlyCount "102"]
[EventDate "2022.02.23"]
[EventType "swiss"]
[EventCountry "NOR"]
[SourceTitle "playchess.com"]
[Source "ChessBase"]
[SourceQuality "1"]
[TimeControl "5400+30"]

1. e4 {[%emt 0:00:02]} e5 {[%emt 0:01:06]} 2. Bc4 {[%emt 0:00:07]} Nf6 {[%emt 0:00:10]} 3. d3 {[%emt 0:00:05]} Nc6 {[%emt 0:00:04]} 4. Nf3 {[%emt 0:00:06]} Be7 {[%emt 0:02:03]} 5. O-O {[%emt 0:00:29]} O-O {[%emt 0:00:44]} 6. a4 {[%emt 0:02:40]} d6 {[%emt 0:01:35]} 7. h3 {[%emt 0:01:14]} Kh8 {[%emt 0:05:09]} 8. Nc3 {[%emt 0:00:57]} Ng8 {[%emt 0:03:21]} 9. Nd5 {[%emt 0:05:39]} f5 {[%emt 0:07:14]} 10. Nxe7 {[%emt 0:03:07]} Qxe7 {[%emt 0:05:54]} 11. Bg5 {[%emt 0:03:43]} Qe8 {[%emt 0:02:34]} 12. exf5 {[%emt 0:03:12]} Bxf5 {[%emt 0:08:44]} 13. Nh4 {[%emt 0:17:13]} Be6 {[%emt 0:01:52]} 14. Bxe6 {[%emt 0:05:53]} Qxe6 {[%emt 0:00:16]} 15. Qg4 {[%emt 0:10:52]} Qxg4 {[%emt 0:17:45]} 16. hxg4 {[%emt 0:00:06]} Nd4 {[%emt 0:00:16]} 17. c3 {[%emt 0:03:07]} Ne6 {[%emt 0:00:55]} 18. Be3 {[%emt 0:03:58]} Nf6 {[%emt 0:07:40]} 19. f3 {[%emt 0:02:55]} Nd5 {[%emt 0:04:52]} 20. Bf2 {[%emt 0:02:32]} Ne7 {[%emt 0:09:29]} 21. d4 {[%emt 0:05:25]} g5 {[%emt 0:02:49]} 22. Nf5 {[%emt 0:00:13]} Nxf5 {[%emt 0:00:07]} 23. gxf5 {[%emt 0:00:08]} Rxf5 {[%emt 0:00:43]} 24. dxe5 {[%emt 0:00:29]} Rxe5 {[%emt 0:05:20]} 25. Rfe1 {[%emt 0:01:44]} Kg7 {[%emt 0:07:03]} 26. Rxe5 {[%emt 0:01:29]} dxe5 {[%emt 0:00:04]} 27. Rd1 {[%emt 0:00:18]} Nf8 {[%emt 0:00:30]} 28. Bc5 {[%emt 0:01:18]} Kf6 {[%emt 0:00:48]} 29. Bxf8 {[%emt 0:02:55]} Rxf8 {[%emt 0:00:05]} 30. g4 {[%emt 0:02:06]} Ke6 {[%emt 0:00:58]} 31. Kg2 {[%emt 0:01:26]} Rf4 {[%emt 0:00:05]} 32. b4 {[%emt 0:03:18]} Rc4 {[%emt 0:01:31]} 33. Rh1 {[%emt 0:00:55]} Rxc3 {[%emt 0:00:49]} 34. Rxh7 {[%emt 0:00:06]} Rc4 {[%emt 0:00:25]} 35. b5 {[%emt 0:01:16]} Kd6 {[%emt 0:01:41]} 36. Rg7 {[%emt 0:00:56]} e4 {[%emt 0:01:20]} 37. fxe4 {[%emt 0:00:40]} Rxa4 {[%emt 0:00:19]} 38. Kf3 {[%emt 0:01:54]} Ra3+ {[%emt 0:00:08]} 39. Kf2 {[%emt 0:01:24]} Ra2+ {[%emt 0:00:12]} 40. Kf3 {[%emt 0:00:17]} Ra3+ {[%emt 0:00:02]} 41. Kf2 {[%emt 0:00:07]} Ke5 {[%emt 0:02:35]} 42. Rxg5+ {[%emt 0:00:52]} Kxe4 {[%emt 0:00:17]} 43. Rc5 {[%emt 0:00:24]} Rb3 {[%emt 0:01:40]} 44. g5 {[%emt 0:00:21]} Rf3+ {[%emt 0:00:27]} 45. Ke2 {[%emt 0:01:52]} Re3+ {[%emt 0:00:08]} 46. Kf2 {[%emt 0:00:17]} Rf3+ {[%emt 0:00:03]} 47. Ke2 {[%emt 0:00:06]} Rf5 {[%emt 0:00:35]} 48. Rxc7 {[%emt 0:00:25]} Rxg5 {[%emt 0:00:49]} 49. Rxb7 {[%emt 0:00:09]} Rg2+ {[%emt 0:00:17]} 50. Kf1 {[%emt 0:00:27]} Ra2 {[%emt 0:00:06]} 51. b6 {[%emt 0:00:58]} axb6 {[%emt 0:01:05]} 1/2-1/2

[Event "Kragero Resort International 2022"]
[Site "Kragero"]
[Date "2022.02.24"]
[Round "4.20"]
[White "Fischer, Daniel"]
[Black "Jalving, August"]
[Result "1-0"]
[ECO "B12"]
[WhiteElo "2340"]
[BlackElo "1876"]
[Annotator "RC"]
[PlyCount "117"]
[EventDate "2022.02.23"]
[EventType "swiss"]
[EventCountry "NOR"]
[SourceTitle "playchess.com"]
[Source "ChessBase"]
[SourceQuality "1"]
[TimeControl "5400+30"]

1. e4 {[%emt 0:00:23]} c6 {[%emt 0:00:15]} 2. d4 {[%emt 0:00:07]} d5 {[%emt 0:00:10]} 3. e5 {[%emt 0:00:05]} c5 {[%emt 0:00:10]} 4. dxc5 {[%emt 0:00:07]} Nc6 {[%emt 0:00:29]} 5. Nf3 {[%emt 0:00:26]} Bg4 {[%emt 0:00:12]} 6. c3 {[%emt 0:07:30]} e6 {[%emt 0:00:22]} 7. Be3 {[%emt 0:01:05]} Bxf3 {[%emt 0:00:53]} 8. Qxf3 {[%emt 0:00:15]} Nxe5 {[%emt 0:00:25]} 9. Bb5+ {[%emt 0:01:52]} Nc6 {[%emt 0:01:12]} 10. O-O {[%emt 0:00:56]} Nf6 {[%emt 0:00:28]} 11. c4 {[%emt 0:10:35]} Qc7 {[%emt 0:06:37]} 12. Nc3 {[%emt 0:03:25]} dxc4 {[%emt 0:00:23]} 13. Bxc4 {[%emt 0:04:46]} a6 {[%emt 0:00:19]} 14. Rac1 {[%emt 0:08:46]} Be7 {[%emt 0:01:58]} 15. Qe2 {[%emt 0:02:58]} O-O {[%emt 0:00:29]} 16. a3 {[%emt 0:00:47]} a5 {[%emt 0:02:51]} 17. Rfd1 {[%emt 0:04:37]} Qe5 {[%emt 0:02:40]} 18. f4 {[%emt 0:03:16]} Qf5 {[%emt 0:00:45]} 19. Bd3 {[%emt 0:00:30]} Qg4 {[%emt 0:00:05]} 20. h3 {[%emt 0:00:34]} Qxe2 {[%emt 0:01:04]} 21. Bxe2 {[%emt 0:00:06]} Rfd8 {[%emt 0:00:40]} 22. Bf3 {[%emt 0:01:40]} Rxd1+ {[%emt 0:05:39]} 23. Rxd1 {[%emt 0:00:32]} Rd8 {[%emt 0:01:58]} 24. Rxd8+ {[%emt 0:01:59]} Bxd8 {[%emt 0:00:39]} 25. Kf2 {[%emt 0:00:47]} Be7 {[%emt 0:02:22]} 26. Ke2 {[%emt 0:04:44]} Kf8 {[%emt 0:01:39]} 27. Kd3 {[%emt 0:01:24]} Ke8 {[%emt 0:01:07]} 28. Kc4 {[%emt 0:00:39]} Kd7 {[%emt 0:00:18]} 29. Na4 {[%emt 0:03:30]} Nd5 {[%emt 0:02:45]} 30. Bxd5 {[%emt 0:02:22]} exd5+ {[%emt 0:00:51]} 31. Kxd5 {[%emt 0:00:06]} Bf6 {[%emt 0:00:26]} 32. Kc4 {[%emt 0:05:18]} Bd8 {[%emt 0:04:42]} 33. Nc3 {[%emt 0:03:30]} Ne7 {[%emt 0:01:40]} 34. Ne4 {[%emt 0:02:04]} Kc6 {[%emt 0:02:50]} 35. b4 {[%emt 0:02:33]} axb4 {[%emt 0:00:31]} 36. axb4 {[%emt 0:00:01]} Nf5 {[%emt 0:03:18]} 37. Bf2 {[%emt 0:01:16]} Bc7 {[%emt 0:00:30]} 38. g4 {[%emt 0:04:54]} Ne7 {[%emt 0:00:18]} 39. f5 {[%emt 0:00:58]} f6 {[%emt 0:00:46]} 40. Bd4 {[%emt 0:02:45]} h5 {[%emt 0:02:26]} 41. b5+ {[%emt 0:05:44]} Kd7 {[%emt 0:00:20]} 42. Bxf6 {[%emt 0:03:37]} hxg4 {[%emt 0:03:38]} 43. Bxe7 {[%emt 0:01:34]} Kxe7 {[%emt 0:00:58]} 44. hxg4 {[%emt 0:00:06]} Kd7 {[%emt 0:01:11]} 45. Kd5 {[%emt 0:00:06]} Bf4 {[%emt 0:00:11]} 46. c6+ {[%emt 0:00:22]} bxc6+ {[%emt 0:00:18]} 47. bxc6+ {[%emt 0:00:08]} Ke7 {[%emt 0:00:46]} 48. Kc5 {[%emt 0:01:52]} Bc7 {[%emt 0:01:05]} 49. Kb5 {[%emt 0:01:36]} Bf4 {[%emt 0:03:35]} 50. Kb6 {[%emt 0:00:12]} Kd8 {[%emt 0:00:20]} 51. Kb7 {[%emt 0:00:05]} Be5 {[%emt 0:00:09]} 52. Ng5 {[%emt 0:02:03]} Ke7 {[%emt 0:00:26]} 53. Nf3 {[%emt 0:00:42]} Bf4 {[%emt 0:00:08]} 54. c7 {[%emt 0:00:24]} Bxc7 {[%emt 0:00:06]} 55. Kxc7 {[%emt 0:00:04]} g6 {[%emt 0:00:09]} 56. fxg6 {[%emt 0:00:06]} Kf6 {[%emt 0:00:06]} 57. Nh4 {[%emt 0:00:29]} Ke7 {[%emt 0:00:10]} 58. g7 {[%emt 0:00:22]} Kf7 {[%emt 0:00:05]} 59. Nf5 {[%emt 0:00:04]} 1-0

[Event "Kragero Resort International 2022"]
[Site "Kragero"]
[Date "2022.02.24"]
[Round "4.21"]
[White "Ptacnikova, Lenka"]
[Black "Sagafos, Magne"]
[Result "1/2-1/2"]
[ECO "B04"]
[WhiteElo "2173"]
[BlackElo "2386"]
[Annotator "RC"]
[PlyCount "175"]
[EventDate "2022.02.23"]
[EventType "swiss"]
[EventCountry "NOR"]
[SourceTitle "playchess.com"]
[Source "ChessBase"]
[SourceQuality "1"]
[TimeControl "5400+30"]

1. e4 {[%emt 0:00:07]} Nf6 {[%emt 0:00:21]} 2. e5 {[%emt 0:00:09]} Nd5 {[%emt 0:00:05]} 3. d4 {[%emt 0:00:07]} d6 {[%emt 0:00:06]} 4. Nf3 {[%emt 0:00:22]} dxe5 {[%emt 0:00:22]} 5. Nxe5 {[%emt 0:00:05]} g6 {[%emt 0:00:10]} 6. Bc4 {[%emt 0:00:36]} c6 {[%emt 0:00:29]} 7. O-O {[%emt 0:06:14]} Bg7 {[%emt 0:00:20]} 8. Re1 {[%emt 0:05:28]} O-O {[%emt 0:04:44]} 9. Bb3 {[%emt 0:03:29]} Be6 {[%emt 0:12:02]} 10. Nd2 {[%emt 0:02:15]} a5 {[%emt 0:04:16]} 11. c3 {[%emt 0:02:49]} Nc7 {[%emt 0:03:07]} 12. Bxe6 {[%emt 0:04:43]} Nxe6 {[%emt 0:00:05]} 13. Qb3 {[%emt 0:00:34]} Qc8 {[%emt 0:04:20]} 14. a4 {[%emt 0:05:30]} Nf4 {[%emt 0:17:42]} 15. Ndc4 {[%emt 0:05:58]} Nd5 {[%emt 0:01:25]} 16. Nd3 {[%emt 0:04:11]} Nd7 {[%emt 0:03:20]} 17. Bg5 {[%emt 0:00:13]} e6 {[%emt 0:06:12]} 18. Bh4 {[%emt 0:07:12]} b6 {[%emt 0:05:52]} 19. Bg3 {[%emt 0:01:34]} Qa6 {[%emt 0:01:30]} 20. Rad1 {[%emt 0:00:59]} Rfd8 {[%emt 0:11:42]} 21. h3 {[%emt 0:05:30]} b5 {[%emt 0:06:35]} 22. Nd6 {[%emt 0:05:55]} Bf8 {[%emt 0:00:55]} 23. Ne4 {[%emt 0:01:35]} Qb6 {[%emt 0:02:36]} 24. Ra1 {[%emt 0:05:52]} Ra7 {[%emt 0:02:12]} 25. Bd6 {[%emt 0:06:05]} Bxd6 {[%emt 0:03:15]} 26. Nxd6 {[%emt 0:00:43]} bxa4 {[%emt 0:04:09]} 27. Qxa4 {[%emt 0:01:48]} c5 {[%emt 0:00:20]} 28. Nb5 {[%emt 0:06:11]} Raa8 {[%emt 0:01:09]} 29. c4 {[%emt 0:02:00]} Nc7 {[%emt 0:00:16]} 30. dxc5 {[%emt 0:09:52]} Nxc5 {[%emt 0:00:05]} 31. Nxc5 {[%emt 0:00:06]} Qxc5 {[%emt 0:00:07]} 32. Red1 {[%emt 0:01:49]} Nxb5 {[%emt 0:03:04]} 33. cxb5 {[%emt 0:00:32]} Rdb8 {[%emt 0:00:26]} 34. b4 {[%emt 0:00:57]} Qxb5 {[%emt 0:01:05]} 35. Rd8+ {[%emt 0:00:57]} Rxd8 {[%emt 0:00:29]} 36. Qxb5 {[%emt 0:00:08]} axb4 {[%emt 0:00:10]} 37. Rxa8 {[%emt 0:00:21]} Rxa8 {[%emt 0:00:01]} 38. Qxb4 {[%emt 0:00:07]} h5 {[%emt 0:02:31]} 39. Kh2 {[%emt 0:01:09]} Rd8 {[%emt 0:00:06]} 40. Kg3 {[%emt 0:00:25]} Rd5 {[%emt 0:00:12]} 41. h4 {[%emt 0:00:34]} Rf5 {[%emt 0:00:41]} 42. f3 {[%emt 0:00:13]} Kg7 {[%emt 0:00:23]} 43. Qd4+ {[%emt 0:00:51]} Kg8 {[%emt 0:00:06]} 44. Kf2 {[%emt 0:00:23]} Rd5 {[%emt 0:00:09]} 45. Qc3 {[%emt 0:00:38]} Rf5 {[%emt 0:00:08]} 46. Ke3 {[%emt 0:00:17]} Rb5 {[%emt 0:00:21]} 47. Ke4 {[%emt 0:00:41]} Rd5 {[%emt 0:00:28]} 48. Qc6 {[%emt 0:02:18]} Kg7 {[%emt 0:01:51]} 49. Qc3+ {[%emt 0:02:13]} Kg8 {[%emt 0:00:04]} 50. Qf6 {[%emt 0:00:34]} Rf5 {[%emt 0:00:18]} 51. Qd8+ {[%emt 0:00:12]} Kg7 {[%emt 0:00:05]} 52. Qd4+ {[%emt 0:00:18]} Kg8 {[%emt 0:00:16]} 53. g4 {[%emt 0:00:33]} Rd5 {[%emt 0:00:25]} 54. Qb2 {[%emt 0:01:34]} Kh7 {[%emt 0:01:10]} 55. g5 {[%emt 0:00:42]} Rf5 {[%emt 0:02:05]} 56. Qb7 {[%emt 0:00:31]} Kg8 {[%emt 0:00:25]} 57. Qd7 {[%emt 0:00:12]} Kg7 {[%emt 0:00:09]} 58. Qd8 {[%emt 0:00:20]} Rb5 {[%emt 0:00:30]} 59. Qf6+ {[%emt 0:00:46]} Kg8 {[%emt 0:00:10]} 60. Qc3 {[%emt 0:00:13]} Rd5 {[%emt 0:00:41]} 61. Qc6 {[%emt 0:00:32]} Rf5 {[%emt 0:00:14]} 62. Qb7 {[%emt 0:00:34]} Kg7 {[%emt 0:00:25]} 63. Qa8 {[%emt 0:00:22]} Rb5 {[%emt 0:00:21]} 64. Qa1+ {[%emt 0:00:36]} Kg8 {[%emt 0:00:09]} 65. Qd4 {[%emt 0:00:31]} Rf5 {[%emt 0:00:19]} 66. Qa4 {[%emt 0:00:38]} Kg7 {[%emt 0:00:11]} 67. Qa6 {[%emt 0:00:20]} Kg8 {[%emt 0:00:48]} 68. f4 {[%emt 0:00:33]} Kg7 {[%emt 0:00:23]} 69. Qa1+ {[%emt 0:00:37]} Kg8 {[%emt 0:00:11]} 70. Qb2 {[%emt 0:00:29]} Rd5 {[%emt 0:00:20]} 71. Qb7 {[%emt 0:00:24]} Rf5 {[%emt 0:01:57]} 72. Ke3 {[%emt 0:00:34]} Kg7 {[%emt 0:00:34]} 73. Qb2+ {[%emt 0:00:34]} Kg8 {[%emt 0:00:06]} 74. Qb1 {[%emt 0:00:34]} Kg7 {[%emt 0:00:26]} 75. Qe4 {[%emt 0:00:24]} Kg8 {[%emt 0:00:34]} 76. Kd3 {[%emt 0:00:11]} Kg7 {[%emt 0:00:40]} 77. Kc4 {[%emt 0:00:09]} Kg8 {[%emt 0:00:30]} 78. Qd4 {[%emt 0:00:22]} Kh7 {[%emt 0:00:21]} 79. Qd6 {[%emt 0:00:31]} Kg8 {[%emt 0:00:13]} 80. Qb8+ {[%emt 0:00:21]} Kg7 {[%emt 0:00:05]} 81. Kd4 {[%emt 0:00:14]} Rd5+ {[%emt 0:00:06]} 82. Ke3 {[%emt 0:00:24]} Rf5 {[%emt 0:00:06]} 83. Ke4 {[%emt 0:00:26]} Rd5 {[%emt 0:00:34]} 84. Qe8 {[%emt 0:01:21]} Rf5 {[%emt 0:00:14]} 85. Qa8 {[%emt 0:00:17]} Rb5 {[%emt 0:00:15]} 86. Kd4 {[%emt 0:00:56]} Rf5 {[%emt 0:00:11]} 87. Qb8 {[%emt 0:00:15]} Rd5+ {[%emt 0:00:07]} 88. Ke4 {[%emt 0:01:14]} 1/2-1/2

[Event "Kragero Resort International 2022"]
[Site "Kragero"]
[Date "2022.02.24"]
[Round "4.22"]
[White "Austad, Eirik Strom"]
[Black "Kenneskog, Theodor"]
[Result "1/2-1/2"]
[ECO "B51"]
[WhiteElo "2055"]
[BlackElo "2344"]
[Annotator "NA RC"]
[PlyCount "70"]
[EventDate "2022.02.23"]
[EventType "swiss"]
[EventCountry "NOR"]
[SourceTitle "playchess.com"]
[Source "ChessBase"]
[SourceQuality "1"]
[TimeControl "5400+30"]

1. e4 {[%emt 0:00:04]} c5 {[%emt 0:00:12]} 2. Nf3 {[%emt 0:00:13]} d6 {[%emt 0:00:05]} 3. Bb5+ {[%emt 0:00:04]} Nd7 {[%emt 0:00:20]} 4. a4 {[%emt 0:00:09]} Ngf6 {[%emt 0:00:22]} 5. Nc3 {[%emt 0:00:05]} g6 {[%emt 0:05:30]} 6. a5 {[%emt 0:01:09]} Bg7 {[%emt 0:01:03]} 7. a6 {[%emt 0:01:06]} O-O {[%emt 0:01:01]} 8. O-O {[%emt 0:00:24]} e5 {[%emt 0:11:25]} 9. d3 {[%emt 0:01:49]} Nb6 {[%emt 0:01:21]} 10. Bg5 {[%emt 0:13:25]} h6 {[%emt 0:09:09]} 11. Bxf6 {[%emt 0:11:14]} Qxf6 {[%emt 0:00:12]} 12. Nd2 {[%emt 0:00:47]} Qe7 {[%emt 0:03:45]} 13. Nc4 $16 {[%emt 0:00:58]} Nxc4 {[%emt 0:02:12]} 14. Bxc4 {[%emt 0:01:27]} b6 {[%emt 0:00:51]} 15. Nd5 {[%emt 0:15:10]} Qd8 {[%emt 0:00:31]} 16. c3 {[%emt 0:04:05]} Kh7 {[%emt 0:01:25]} 17. Qe2 {[%emt 0:07:35]} f5 {[%emt 0:02:21]} 18. f4 {[%emt 0:04:10]} Rb8 {[%emt 0:05:01]} 19. exf5 {[%emt 0:02:56]} gxf5 {[%emt 0:04:49]} 20. Ne3 {[%emt 0:03:52]} b5 {[%emt 0:08:50]} 21. Bd5 {[%emt 0:00:07]} b4 {[%emt 0:00:16]} 22. Qc2 {[%emt 0:02:58]} Kh8 {[%emt 0:05:10]} 23. g3 {[%emt 0:02:26]} bxc3 {[%emt 0:04:48]} 24. bxc3 {[%emt 0:00:23]} Qf6 {[%emt 0:00:20]} 25. Bc4 {[%emt 0:03:05]} Be6 {[%emt 0:04:49]} 26. Nd5 {[%emt 0:00:21]} Qf7 {[%emt 0:04:24]} 27. Qg2 {[%emt 0:00:23]} Kh7 {[%emt 0:04:15]} 28. Kh1 {[%emt 0:00:44]} exf4 {[%emt 0:02:57]} 29. gxf4 {[%emt 0:02:55]} Rg8 {[%emt 0:03:05]} 30. Qf3 {[%emt 0:00:17]} Rb2 {[%emt 0:01:38]} 31. Rab1 {[%emt 0:02:18]} Rgb8 {[%emt 0:00:09]} 32. Rxb2 {[%emt 0:00:41]} Rxb2 {[%emt 0:00:03]} 33. Rc1 {[%emt 0:00:36]} Qd7 {[%emt 0:10:02]} 34. Re1 {[%emt 0:00:41]} Qf7 {[%emt 0:02:03]} 35. Rc1 {[%emt 0:01:45]} Bxd5 {[%emt 0:00:51]} 1/2-1/2

[Event "Kragero Resort International 2022"]
[Site "Kragero"]
[Date "2022.02.24"]
[Round "4.23"]
[White "Stanford, Maxim Barth"]
[Black "Kanyamarala, Trisha"]
[Result "1-0"]
[ECO "D01"]
[WhiteElo "2339"]
[BlackElo "2166"]
[Annotator "RC"]
[PlyCount "141"]
[EventDate "2022.02.23"]
[EventType "swiss"]
[EventCountry "NOR"]
[SourceTitle "playchess.com"]
[Source "ChessBase"]
[SourceQuality "1"]
[TimeControl "5400+30"]

1. d4 {[%emt 0:02:18]} Nf6 {[%emt 0:00:12]} 2. Nc3 {[%emt 0:00:40]} d5 {[%emt 0:00:46]} 3. Bg5 {[%emt 0:00:21]} g6 {[%emt 0:04:39]} 4. Qd2 {[%emt 0:02:21]} h6 {[%emt 0:03:15]} 5. Bxf6 {[%emt 0:00:44]} exf6 {[%emt 0:00:08]} 6. g3 {[%emt 0:02:12]} Bg7 {[%emt 0:01:29]} 7. Bg2 {[%emt 0:00:31]} c6 {[%emt 0:00:38]} 8. e3 {[%emt 0:01:02]} Nd7 {[%emt 0:03:20]} 9. Nge2 {[%emt 0:01:51]} O-O {[%emt 0:02:24]} 10. O-O {[%emt 0:00:55]} f5 {[%emt 0:04:54]} 11. b4 {[%emt 0:00:44]} Nb6 {[%emt 0:04:52]} 12. b5 {[%emt 0:03:14]} Nc4 {[%emt 0:01:35]} 13. Qc1 {[%emt 0:03:31]} Be6 {[%emt 0:06:36]} 14. a4 {[%emt 0:07:46]} Rc8 {[%emt 0:10:44]} 15. Rd1 {[%emt 0:02:26]} Qa5 {[%emt 0:04:05]} 16. Rd3 {[%emt 0:02:52]} Rfd8 {[%emt 0:02:59]} 17. Nf4 {[%emt 0:04:06]} Bf8 {[%emt 0:08:37]} 18. Nce2 {[%emt 0:03:57]} Nd6 {[%emt 0:09:57]} 19. Rb3 {[%emt 0:03:12]} Qc7 {[%emt 0:02:41]} 20. c3 {[%emt 0:02:34]} Bd7 {[%emt 0:06:27]} 21. bxc6 {[%emt 0:07:47]} bxc6 {[%emt 0:00:11]} 22. Nd3 {[%emt 0:00:52]} Nc4 {[%emt 0:02:31]} 23. Qd1 {[%emt 0:15:34]} Rb8 {[%emt 0:01:33]} 24. Nec1 {[%emt 0:02:51]} Na5 {[%emt 0:01:30]} 25. Rbb1 {[%emt 0:01:36]} Bc8 {[%emt 0:04:59]} 26. Ne5 {[%emt 0:04:57]} Ba6 {[%emt 0:01:41]} 27. Bf1 {[%emt 0:01:53]} Bxf1 {[%emt 0:02:43]} 28. Qxf1 {[%emt 0:00:25]} Bd6 {[%emt 0:00:43]} 29. Ncd3 {[%emt 0:01:44]} c5 {[%emt 0:03:53]} 30. Nf3 {[%emt 0:06:24]} c4 {[%emt 0:00:32]} 31. Nf4 {[%emt 0:03:21]} Bxf4 {[%emt 0:01:55]} 32. gxf4 {[%emt 0:01:11]} Rb3 {[%emt 0:00:57]} 33. Qh3 {[%emt 0:02:08]} Kg7 {[%emt 0:00:58]} 34. Kh1 {[%emt 0:01:17]} Rxc3 {[%emt 0:01:43]} 35. Rg1 {[%emt 0:01:19]} Qd7 {[%emt 0:01:06]} 36. Rg3 {[%emt 0:01:06]} Nc6 {[%emt 0:00:36]} 37. Rag1 {[%emt 0:00:36]} Qe6 {[%emt 0:00:31]} 38. Qg2 {[%emt 0:00:45]} Kf8 {[%emt 0:00:36]} 39. h4 {[%emt 0:03:01]} h5 {[%emt 0:00:17]} 40. Ng5 {[%emt 0:00:30]} Qe7 {[%emt 0:00:27]} 41. Kh2 {[%emt 0:01:06]} Rd6 {[%emt 0:00:36]} 42. Kh3 {[%emt 0:00:27]} Rb3 {[%emt 0:00:33]} 43. Qf1 {[%emt 0:01:01]} Nb4 {[%emt 0:00:20]} 44. Nf3 {[%emt 0:01:21]} Nd3 {[%emt 0:00:25]} 45. Ne5 {[%emt 0:00:38]} Nxe5 {[%emt 0:00:23]} 46. fxe5 {[%emt 0:00:05]} Rc6 {[%emt 0:00:24]} 47. Qd1 {[%emt 0:01:06]} Qb7 {[%emt 0:00:28]} 48. Qf3 {[%emt 0:00:45]} Re6 {[%emt 0:00:27]} 49. Qf4 {[%emt 0:00:30]} Ke7 {[%emt 0:00:50]} 50. Qg5+ {[%emt 0:00:43]} Kd7 {[%emt 0:00:10]} 51. Qh6 {[%emt 0:00:22]} Qb8 {[%emt 0:01:07]} 52. Qg7 {[%emt 0:00:20]} Ke8 {[%emt 0:00:22]} 53. Rc1 {[%emt 0:00:42]} Ke7 {[%emt 0:00:27]} 54. Qh6 {[%emt 0:00:30]} Qf8 {[%emt 0:00:25]} 55. Qf4 {[%emt 0:00:17]} Qc8 {[%emt 0:00:29]} 56. f3 {[%emt 0:01:08]} Reb6 {[%emt 0:00:34]} 57. Qg5+ {[%emt 0:00:38]} Ke8 {[%emt 0:00:11]} 58. f4 {[%emt 0:00:12]} Rb2 {[%emt 0:00:22]} 59. a5 {[%emt 0:00:54]} Re6 {[%emt 0:00:53]} 60. Qh6 {[%emt 0:00:17]} Qb8 {[%emt 0:00:27]} 61. Qg7 {[%emt 0:00:48]} Ke7 {[%emt 0:00:47]} 62. e4 {[%emt 0:00:26]} fxe4 {[%emt 0:00:35]} 63. f5 {[%emt 0:00:07]} Rc6 {[%emt 0:00:13]} 64. e6 {[%emt 0:00:44]} Qf8 {[%emt 0:00:44]} 65. f6+ {[%emt 0:00:09]} Ke8 {[%emt 0:00:07]} 66. e7 {[%emt 0:00:04]} Qxg7 {[%emt 0:00:41]} 67. fxg7 {[%emt 0:00:05]} Rf6 {[%emt 0:00:07]} 68. g8=Q+ {[%emt 0:00:17]} Kxe7 {[%emt 0:00:02]} 69. Rcg1 {[%emt 0:00:54]} Rb5 {[%emt 0:01:38]} 70. Rg5 {[%emt 0:00:42]} c3 {[%emt 0:00:19]} 71. Re5+ {[%emt 0:00:14]} 1-0

[Event "Kragero Resort International 2022"]
[Site "Kragero"]
[Date "2022.02.24"]
[Round "4.24"]
[White "Ingebretsen, Jens E"]
[Black "Bjorgvinsson, Andri Freyr"]
[Result "1-0"]
[ECO "B47"]
[WhiteElo "2316"]
[BlackElo "2096"]
[Annotator "RC"]
[PlyCount "87"]
[EventDate "2022.02.23"]
[EventType "swiss"]
[EventCountry "NOR"]
[SourceTitle "playchess.com"]
[Source "ChessBase"]
[SourceQuality "1"]
[TimeControl "5400+30"]

1. e4 {[%emt 0:00:06]} c5 {[%emt 0:00:50]} 2. Nf3 {[%emt 0:00:06]} e6 {[%emt 0:00:14]} 3. d4 {[%emt 0:00:07]} cxd4 {[%emt 0:00:07]} 4. Nxd4 {[%emt 0:00:04]} Nc6 {[%emt 0:00:14]} 5. Nc3 {[%emt 0:00:09]} Qc7 {[%emt 0:00:14]} 6. g3 {[%emt 0:00:16]} a6 {[%emt 0:01:08]} 7. Bg2 {[%emt 0:00:15]} Nf6 {[%emt 0:00:09]} 8. O-O {[%emt 0:00:21]} Nxd4 {[%emt 0:00:15]} 9. Qxd4 {[%emt 0:00:05]} Bc5 {[%emt 0:00:10]} 10. Bf4 {[%emt 0:00:18]} d6 {[%emt 0:00:22]} 11. Qd2 {[%emt 0:00:24]} h6 {[%emt 0:01:14]} 12. Rad1 {[%emt 0:01:44]} e5 {[%emt 0:00:10]} 13. Be3 {[%emt 0:00:03]} Bb4 {[%emt 0:00:10]} 14. Nb5 {[%emt 0:02:02]} axb5 {[%emt 0:00:45]} 15. Qxb4 {[%emt 0:00:05]} Rxa2 {[%emt 0:00:18]} 16. Rxd6 {[%emt 0:08:40]} O-O {[%emt 0:00:31]} 17. Rd2 {[%emt 0:06:30]} Be6 {[%emt 0:00:22]} 18. Rfd1 {[%emt 0:04:49]} Ng4 {[%emt 0:03:45]} 19. Bc5 {[%emt 0:02:18]} Rc8 {[%emt 0:00:55]} 20. Bd6 {[%emt 0:00:40]} Qb6 {[%emt 0:00:25]} 21. Bf1 {[%emt 0:04:33]} Nxf2 {[%emt 0:08:34]} 22. Rxf2 {[%emt 0:03:05]} Rxc2 {[%emt 0:00:09]} 23. Rdd2 {[%emt 0:02:35]} Raxb2 {[%emt 0:00:19]} 24. Bc5 {[%emt 0:02:04]} Qc6 {[%emt 0:08:56]} 25. Rxc2 {[%emt 0:02:15]} Rxb4 {[%emt 0:00:05]} 26. Bxb4 {[%emt 0:00:05]} Qxe4 {[%emt 0:00:10]} 27. Bc5 {[%emt 0:10:34]} Bc4 {[%emt 0:03:18]} 28. Rc1 {[%emt 0:04:52]} Qd5 {[%emt 0:07:45]} 29. Be3 {[%emt 0:02:52]} Qe4 {[%emt 0:01:01]} 30. Re1 {[%emt 0:00:51]} Qc6 {[%emt 0:17:56]} 31. Bg2 {[%emt 0:01:34]} e4 {[%emt 0:00:52]} 32. Rd1 {[%emt 0:01:51]} Qe6 {[%emt 0:01:12]} 33. Rd4 {[%emt 0:02:50]} Bd3 {[%emt 0:00:37]} 34. h4 {[%emt 0:00:54]} b4 {[%emt 0:18:50]} 35. Kh2 {[%emt 0:05:15]} b3 {[%emt 0:00:06]} 36. Rd8+ {[%emt 0:02:08]} Kh7 {[%emt 0:00:07]} 37. Bh3 {[%emt 0:00:27]} Qe7 {[%emt 0:06:46]} 38. Rd7 {[%emt 0:00:29]} Qe8 {[%emt 0:00:18]} 39. Rfxf7 {[%emt 0:01:30]} Qxf7 {[%emt 0:03:01]} 40. Rxf7 {[%emt 0:00:22]} b2 {[%emt 0:00:05]} 41. Bd4 {[%emt 0:00:24]} b1=Q {[%emt 0:03:47]} 42. Rxg7+ {[%emt 0:00:34]} Kh8 {[%emt 0:00:04]} 43. Rg5+ {[%emt 0:00:09]} Kh7 {[%emt 0:00:12]} 44. Bf5# {[%emt 0:00:04]} 1-0